bitfinex/quotes_ETHUSD_20240827
["timestamp","ask_amount","ask_price","bid_price","bid_amount"]
[1724800012891,0.57399569,2467.0,2465.7,2.3311]
[1724800013187,0.35739957,2466.9,2465.7,2.3311]
[1724800013833,0.09693012,2466.8,2465.7,2.3311]
[1724800014127,0.09693012,2466.8,2465.9,2.487]
[1724800014444,0.2406055,2467.2,2465.9,2.487]
[1724800014588,0.09693012,2467.1,2465.9,2.487]
[1724800014788,0.09693012,2467.1,2465.9,2.7357]
[1724800015014,6.3635533,2466.8,2466.1,2.3836]
[1724800015198,0.09732526,2466.7,2466.1,2.3836]
[1724800015941,0.74341312,2466.7,2466.1,2.3836]
[1724800016146,0.09732526,2466.7,2466.1,2.3836]
[1724800016436,3.0,2467.2,2466.1,2.3836]
[1724800016637,0.09759241,2467.1,2466.1,2.3836]
[1724800016796,6.3635533,2466.7,2466.1,2.3836]
[1724800017199,6.3635533,2466.3,2466.1,2.3836]
[1724800017439,0.0976621,2466.2,2464.3,2.2591]
[1724800017640,0.63635533,2466.2,2464.5,2.2591]
[1724800017945,0.64460064,2466.1,2464.5,2.2591]
[1724800018298,0.55,2466.1,2464.5,2.2591]
[1724800018499,0.09460064,2466.0,2464.5,2.2591]
[1724800018735,6.3635533,2465.8,2464.7,2.3083]
[1724800019109,6.3635533,2465.8,2464.9,2.3083]
[1724800019110,0.09450773,2465.7,2464.9,2.3083]
[1724800019659,0.55,2465.6,2464.9,2.3083]
[1724800019812,0.0939966,2465.5,2464.9,2.3083]
[1724800020022,0.55,2465.4,2464.5,2.4903]
[1724800020221,0.09400822,2465.3,2464.5,2.4903]
[1724800020416,0.09400822,2465.3,2463.4,2.2814]
[1724800020417,0.39988904,2465.3,2463.4,2.2814]
[1724800020712,0.55,2465.2,2463.4,2.2814]
[1724800020901,2.3644,2464.8,2463.4,2.2814]
[1724800021298,0.64325282,2464.7,2463.4,2.2814]
[1724800021613,2.88,2464.3,2462.6,2.4997]
[1724800021943,0.09321795,2464.2,2462.6,2.4997]
[1724800022149,3.64321795,2464.2,2462.6,2.4997]
[1724800022636,7.70133795,2464.2,2462.6,2.4997]
[1724800022840,1.0581338,2464.1,2462.6,2.4997]
[1724800023005,0.64082298,2464.0,2462.7,0.08120331]
[1724800023207,0.64082298,2464.0,2462.8,2.4419]
[1724800023511,0.64082298,2464.0,2463.0,2.4419]
[1724800023717,0.64082298,2464.0,2463.1,0.08118312]
[1724800023718,0.09082298,2464.0,2463.1,0.08118312]
[1724800024114,0.4077,2464.8,2463.1,0.08118312]
[1724800024115,3.4077,2464.8,2463.1,0.08118312]
[1724800024315,3.4077,2464.8,2463.1,0.25230831]
[1724800024316,0.08906713,2463.9,2463.1,0.25230831]
[1724800024602,0.98045,2464.7,2463.0,2.4419]
[1724800024603,4.05773,2464.5,2463.0,2.4419]
[1724800024903,3.08906713,2464.4,2463.0,2.4419]
[1724800025138,0.71467971,2464.3,2463.0,2.4419]
[1724800025736,2.35756713,2464.2,2463.0,2.4419]
[1724800026047,0.55,2464.1,2463.0,2.4419]
[1724800026638,0.08906713,2464.0,2463.0,2.4419]
[1724800026880,0.55,2463.9,2463.0,2.4419]
[1724800027003,0.96890671,2463.9,2463.0,2.68609]
[1724800027204,0.08906713,2463.8,2463.0,2.68609]
[1724800027403,0.55,2463.7,2463.0,2.4419]
[1724800027627,0.08732233,2463.6,2463.0,2.4419]
[1724800027844,6.3635533,2463.3,2463.0,2.4419]
[1724800028141,6.3635533,2463.3,2462.2,12.42]
[1724800028142,0.55,2463.2,2462.6,2.2886]
[1724800028329,0.63732233,2463.2,2462.6,2.2886]
[1724800028642,0.55,2463.2,2462.6,2.2886]
[1724800028846,6.3635533,2462.9,2462.2,2.2886]
[1724800029150,0.63732233,2462.8,2462.3,0.08122304]
[1724800029316,0.08732233,2462.8,2462.3,0.08122304]
[1724800029512,0.08732233,2462.8,2462.4,2.3734]
[1724800029741,0.55,2463.2,2462.5,0.23734]
[1724800029950,0.08697311,2462.7,2462.5,0.23734]
[1724800030119,0.55,2463.2,2462.5,0.23734]
[1724800030306,0.08697311,2462.6,2462.5,0.31854974]
[1724800030511,0.55,2463.2,2462.5,0.23734]
[1724800030955,0.55,2463.2,2462.4,2.3734]
[1724800030956,6.3635533,2462.9,2462.4,2.3734]
[1724800031513,0.08697311,2462.8,2462.4,2.3734]
[1724800031911,0.55,2462.7,2462.4,2.3734]
[1724800032429,0.08697311,2462.6,2462.4,2.3734]
[1724800032625,0.55,2462.8,2462.4,2.3734]
[1724800032962,0.08697311,2462.7,2462.4,2.61074]
[1724800033176,0.08697311,2462.7,2462.5,0.08120973]
[1724800033352,6.3635533,2463.3,2462.5,0.08120973]
[1724800033673,0.55,2463.2,2462.5,0.3504047]
[1724800033973,0.08697311,2463.1,2462.6,2.3923]
[1724800034140,0.08697311,2463.1,2462.7,0.08119715]
[1724800034481,3.08357971,2464.3,2462.8,2.47349716]
[1724800034482,0.71467971,2464.3,2462.8,2.47349716]
[1724800034636,14.6489,2464.7,2462.9,2.3923]
[1724800034637,0.08608851,2464.2,2462.9,2.3923]
[1724800034843,6.3635533,2464.2,2463.1,2.3923]
[1724800035078,0.08608851,2464.1,2463.3,2.3923]
[1724800035258,0.08608851,2464.1,2463.5,2.3923]
[1724800035470,0.93785637,2466.1,2462.6,2.0]
[1724800035471,2.3689,2466.4,2463.7,2.3923]
[1724800035627,2.3689,2466.4,2463.2,0.3]
[1724800035628,2.3689,2465.7,2463.9,2.3923]
[1724800035825,2.3689,2465.7,2464.0,0.08115417]
[1724800036075,0.08864873,2465.6,2464.1,2.3923]
[1724800036374,0.08864873,2465.6,2464.2,0.08115416]
[1724800036531,0.3344036,2465.6,2464.2,0.32849958]
[1724800036733,0.3344036,2465.6,2464.3,0.08114981]
[1724800037527,3.3344036,2465.6,2464.3,0.08114981]
[1724800037769,0.3344036,2465.6,2464.3,0.08114981]
[1724800038265,0.08864873,2465.6,2464.4,2.47344979]
[1724800038483,2.3689,2467.1,2464.5,2.9423]
[1724800038626,2.3689,2467.1,2464.7,2.3923]
[1724800038627,0.32391075,2467.0,2464.7,2.3923]
[1724800038828,0.23689,2467.0,2464.8,2.9423]
[1724800039072,6.84583531,2467.5,2465.0,2.3923]
[1724800039073,0.08702075,2466.9,2465.0,2.3923]
[1724800039231,2.3689,2467.5,2465.2,2.3232]
[1724800039424,0.08702075,2467.4,2465.3,2.3232]
[1724800039662,0.50575299,2467.4,2465.3,2.40429674]
[1724800039840,4.55860299,2467.4,2465.4,2.56362967]
[1724800040039,4.55860299,2467.4,2465.5,3.0]
[1724800040243,0.50575299,2467.4,2465.6,0.08109973]
[1724800040428,0.2874653,2467.3,2465.7,2.4397]
[1724800040628,0.2874653,2467.3,2465.8,0.08109971]
[1724800040831,0.08702075,2467.2,2465.9,2.4397]
[1724800041070,0.08702075,2467.2,2466.0,0.25207997]
[1724800041366,0.08702075,2467.2,2465.9,2.4397]
[1724800041578,2.276,2467.1,2465.9,2.4397]
[1724800041730,2.276,2467.1,2464.3,6.3635533]
[1724800041731,3.1951035,2467.1,2465.5,2.2812]
[1724800041928,0.2781753,2467.0,2465.5,2.2812]
[1724800042151,2.276,2466.5,2464.3,2.2812]
[1724800042354,0.2276,2466.4,2464.5,2.4387]
[1724800042579,0.7776,2466.4,2464.7,2.4387]
[1724800042863,3.0,2466.7,2463.8,2.3294]
[1724800042864,0.08702075,2466.3,2464.8,2.4387]
[1724800043038,0.27055753,2466.8,2465.0,2.4387]
[1724800043241,0.08702075,2466.7,2465.2,2.4387]
[1724800043652,2.7148653,2467.3,2465.2,2.4387]
[1724800043872,6.3635533,2466.8,2465.3,2.44919702]
[1724800044075,0.42407349,2467.8,2465.5,2.3681]
[1724800044371,2.3077,2468.1,2465.4,1.03844707]
[1724800044372,0.08702075,2467.7,2465.7,2.3681]
[1724800044532,0.08702075,2467.7,2465.9,2.4276]
[1724800044727,0.08702075,2467.7,2465.6,0.48844707]
[1724800044728,2.3077,2468.1,2466.1,2.4276]
[1724800044936,2.3077,2468.1,2466.2,2.50867261]
[1724800045283,4.46999224,2468.4,2466.1,3.0]
[1724800045284,0.08702075,2468.0,2466.4,2.4276]
[1724800045573,0.45915426,2468.3,2466.6,2.4088]
[1724800045773,0.08702075,2467.9,2466.6,2.4088]
[1724800045976,2.5417504,2468.5,2466.7,2.4088]
[1724800046179,0.25417504,2468.4,2466.9,2.4088]
[1724800046480,0.25417504,2468.4,2467.0,0.08105714]
[1724800046766,0.1215504,2468.5,2467.1,2.3888]
[1724800046959,0.1215504,2468.5,2467.2,0.08105089]
[1724800047163,0.1215504,2468.5,2467.3,2.46985089]
[1724800047531,0.08702075,2468.4,2467.3,2.46985089]
[1724800047880,0.08702075,2468.4,2467.3,2.3888]
[1724800048443,0.59661597,2468.5,2467.3,2.3888]
[1724800048444,0.1215504,2468.5,2467.3,2.3888]
[1724800048652,0.1215504,2468.5,2467.4,2.63728]
[1724800048852,0.1215504,2468.5,2467.6,2.3984]
[1724800050033,0.0923636,2468.4,2467.6,2.3984]
[1724800050390,0.0923636,2468.4,2467.7,0.0810488]
[1724800050588,0.0923636,2468.4,2467.6,2.3984]
[1724800050788,0.55,2468.3,2467.6,2.3984]
[1724800051016,0.0923636,2468.4,2467.8,2.3216]
[1724800051222,6.3635533,2468.1,2467.8,2.3216]
[1724800051424,0.55,2468.0,2467.8,2.3216]
[1724800051836,0.0923636,2467.9,2466.5,2.4689]
[1724800052139,0.55,2468.0,2466.6,2.4689]
[1724800052140,0.55,2467.8,2466.6,2.4689]
[1724800052425,0.55,2467.8,2466.7,0.08105271]
[1724800052632,0.55,2467.9,2466.6,2.4355]
[1724800052785,0.55,2467.9,2466.7,3.02905]
[1724800052982,0.55,2467.9,2466.7,2.4355]
[1724800053215,0.0923636,2467.8,2466.9,2.4355]
[1724800053402,0.0923636,2467.8,2467.1,2.3657]
[1724800054761,0.0923636,2467.8,2467.2,2.44675377]
[1724800054891,0.0923636,2467.8,2467.2,2.3657]
[1724800055240,0.1215504,2468.5,2467.2,2.3657]
[1724800055394,0.0923636,2467.7,2467.3,0.08105241]
[1724800055594,0.1215504,2468.5,2467.3,0.08105241]
[1724800055800,0.1215504,2468.5,2467.4,2.2617]
[1724800056003,0.6423636,2468.4,2467.4,2.2617]
[1724800056641,2.9557636,2468.4,2467.4,2.2617]
[1724800056811,0.0923636,2468.4,2467.4,2.2617]
[1724800057026,0.1215504,2468.5,2467.5,2.2617]
[1724800057229,0.0923636,2468.4,2467.5,2.2617]
[1724800057457,0.1215504,2468.5,2466.5,5.0]
[1724800057643,0.1215504,2468.5,2466.7,2.4369]
[1724800057844,0.1215504,2468.5,2466.8,2.4369]
[1724800058072,0.0923636,2468.4,2466.9,2.4369]
[1724800058557,0.0923636,2468.4,2467.0,2.43434383]
[1724800058742,0.0923636,2468.4,2467.1,2.92145207]
[1724800058948,0.0923636,2468.4,2467.3,2.3533]
[1724800059150,0.0923636,2468.4,2467.4,2.3533]
[1724800059317,0.1215504,2468.5,2467.6,2.3533]
[1724800059517,0.1215504,2468.5,2467.8,2.3533]
[1724800059719,0.1215504,2468.5,2467.7,0.31634806]
[1724800059720,0.1215504,2468.5,2468.0,2.3533]
[1724800059944,0.1215504,2468.5,2468.1,0.08101765]
[1724800060454,0.1215504,2468.5,2468.2,2.413]
[1724800060625,0.1215504,2468.5,2468.4,2.413]
[1724800061758,0.1215504,2468.5,2467.9,2.442]
[1724800062068,0.64300213,2468.4,2466.7,2.442]
[1724800062361,0.55,2468.4,2466.8,0.29906947]
[1724800062717,0.09300213,2468.3,2466.8,0.29906947]
[1724800062956,0.55,2468.2,2466.8,0.29906947]
[1724800063460,0.09300213,2468.1,2466.8,0.29906947]
[1724800063659,0.55,2468.0,2466.8,3.29906947]
[1724800063848,0.55,2468.0,2467.0,2.3507]
[1724800064027,0.09300213,2467.9,2467.0,2.3507]
[1724800064231,0.55,2467.8,2467.0,2.3507]
[1724800064681,0.09300213,2467.7,2467.0,2.3507]
[1724800064860,0.55,2467.8,2467.0,2.3507]
[1724800065062,0.09300213,2467.7,2467.0,2.3507]
[1724800065259,0.55,2467.8,2467.0,2.3507]
[1724800065575,0.09300213,2467.7,2467.0,2.3507]
[1724800065961,0.55,2467.8,2467.0,2.3507]
[1724800066163,0.55,2467.8,2467.0,2.77007843]
[1724800066500,0.09315308,2467.7,2467.0,2.77007843]
[1724800066703,0.55,2467.8,2467.0,2.77007843]
[1724800066872,0.09315308,2467.7,2467.0,2.77007843]
[1724800067054,0.55,2467.8,2467.0,2.77007843]
[1724800067259,0.09315308,2467.7,2467.0,2.77007843]
[1724800067460,0.55,2467.8,2467.0,2.77007843]
[1724800067696,0.09315308,2467.7,2467.0,2.77007843]
[1724800067879,0.55,2467.8,2467.0,2.77007843]
[1724800068087,0.09315308,2467.7,2467.0,2.77007843]
[1724800068292,0.55,2467.8,2467.1,0.08105621]
[1724800068494,0.09315308,2467.7,2467.1,0.66616967]
[1724800068678,0.55,2467.8,2467.1,0.58511346]
[1724800068872,0.09315308,2467.7,2467.0,2.3507]
[1724800069087,0.55,2467.8,2467.0,2.3507]
[1724800069292,0.09315308,2467.7,2467.0,2.3507]
[1724800069507,9.3635533,2468.4,2467.2,2.3852]
[1724800069693,0.09315308,2468.3,2467.2,2.3852]
[1724800070208,0.09315308,2468.3,2467.3,0.08103942]
[1724800070406,0.09315308,2468.3,2467.3,0.08103748]
[1724800070906,0.09315308,2468.3,2467.3,0.0810558]
[1724800071079,0.09315308,2468.3,2467.4,2.36495101]
[1724800071282,0.1215504,2468.5,2467.5,2.55191893]
[1724800071470,0.1215504,2468.5,2467.7,2.4709]
[1724800072366,0.09274678,2468.4,2467.7,2.4709]
[1724800073008,0.09274678,2468.4,2467.8,0.08103837]
[1724800073288,0.09274678,2468.4,2467.8,0.08102915]
[1724800073609,0.09274678,2468.4,2467.9,2.4517]
[1724800073902,0.1215504,2468.5,2468.0,0.33429581]
[1724800074268,0.1215504,2468.5,2468.0,0.25327292]
[1724800074667,0.1215504,2468.5,2467.9,5.4517]
[1724800074668,0.1215504,2468.5,2468.1,0.08101777]
[1724800074906,0.1215504,2468.5,2467.9,5.4517]
[1724800075105,0.1215504,2468.5,2468.1,0.08101656]
[1724800075308,0.09274678,2468.4,2467.3,2.3769]
[1724800075683,0.1215504,2468.5,2467.3,2.3769]
[1724800076633,0.1215504,2468.5,2467.4,2.423]
[1724800076794,0.55,2468.4,2467.4,2.423]
[1724800077122,0.55,2468.4,2467.4,2.6653]
[1724800077323,0.1215504,2468.5,2467.5,3.0]
[1724800077324,0.09274678,2468.3,2467.5,3.0]
[1724800077531,0.1215504,2468.5,2467.5,3.0]
[1724800077700,0.09274678,2468.2,2467.5,3.0]
[1724800077890,0.1215504,2468.5,2467.4,2.423]
[1724800078094,0.55,2468.1,2467.5,0.08104042]
[1724800078397,0.55,2468.3,2467.4,2.423]
[1724800078602,0.09274678,2468.0,2466.6,2.3564]
[1724800078797,2.2725,2468.2,2466.7,0.08105368]
[1724800078994,0.09274678,2467.9,2466.9,2.3564]
[1724800079197,0.55,2467.8,2467.0,0.08105353]
[1724800079423,0.09274678,2467.8,2467.0,0.08105353]
[1724800079610,0.09274678,2467.8,2467.0,0.32479888]
[1724800079810,0.77725,2468.1,2467.0,0.32479888]
[1724800080134,0.55,2468.1,2467.0,0.32479888]
[1724800080312,0.09274678,2468.0,2467.1,2.3564]
[1724800080690,0.55,2467.9,2466.8,2.3564]
[1724800080890,0.09274678,2467.8,2466.8,2.3564]
[1724800081121,0.55,2467.7,2466.8,2.3564]
[1724800081325,2.36516551,2467.6,2466.3,2.3564]
[1724800081506,0.84151655,2467.5,2466.3,2.59204]
[1724800081914,0.84151655,2467.5,2465.5,2.82039179]
[1724800081915,2.35346551,2467.4,2465.9,2.4471]
[1724800082430,2.8108,2467.3,2465.9,2.4471]
[1724800082632,3.0,2467.2,2466.0,0.0810997]
[1724800082840,3.0,2467.2,2465.9,2.4471]
[1724800082841,0.55,2467.1,2465.9,2.4471]
[1724800083043,0.36428629,2467.0,2465.9,2.4471]
[1724800083339,2.4714,2466.8,2465.6,0.08109865]
[1724800083548,0.55,2466.7,2465.6,0.08110749]
[1724800083846,0.95281406,2466.7,2465.5,2.4206]
[1724800083997,0.95281406,2466.7,2465.1,0.89560486]
[1724800083998,3.95281406,2466.7,2465.2,0.08111614]
[1724800084201,0.34242141,2466.6,2465.3,1.41106176]
[1724800084397,0.34242141,2466.6,2465.3,0.08111619]
[1724800084398,0.55,2466.5,2465.3,0.08111619]
[1724800084633,0.55,2466.5,2465.4,4.42305286]
[1724800084847,0.55,2466.7,2465.5,3.52745778]
[1724800085010,0.30214,2466.6,2465.6,0.08110732]
[1724800085207,0.30214,2466.6,2465.2,1.05527982]
[1724800085208,0.55,2466.5,2465.3,3.01214263]
[1724800085545,0.55,2466.5,2465.4,3.0]
[1724800085725,0.09138777,2466.4,2465.2,1.05527982]
[1724800086043,2.3466,2466.2,2465.3,0.08111615]
[1724800086248,0.55,2466.1,2465.3,0.08111615]
[1724800086555,0.64138777,2466.1,2465.1,2.3267]
[1724800087206,0.55,2466.1,2465.2,0.08112039]
[1724800087448,0.28966,2466.0,2465.2,0.08112039]
[1724800087644,0.28966,2466.0,2464.7,4.54262326]
[1724800087645,0.55,2465.9,2464.7,4.54262326]
[1724800087938,0.55,2465.9,2464.8,0.08113001]
[1724800088252,0.09138777,2465.8,2464.8,0.08112658]
[1724800088451,0.09138777,2465.8,2464.8,0.75520098]
[1724800088631,0.55,2466.1,2464.9,0.52323208]
[1724800088838,0.08858858,2465.7,2465.1,2.2509]
[1724800089139,2.4906,2466.9,2465.2,0.08110796]
[1724800089309,0.08639248,2466.8,2465.2,0.08110796]
[1724800089801,2.2518,2466.7,2465.1,2.2509]
[1724800090004,2.2518,2466.7,2465.2,0.08111586]
[1724800090005,0.53381925,2466.6,2465.2,0.08111586]
[1724800090443,0.08639248,2466.5,2465.1,2.2509]
[1724800090616,0.55,2466.4,2465.1,2.2509]
[1724800091016,2.4717,2466.3,2465.1,2.2509]
[1724800091218,0.55,2466.2,2465.1,2.2509]
[1724800091413,0.61080925,2466.1,2465.1,2.2509]
[1724800091642,0.55,2466.0,2465.1,2.2509]
[1724800091839,0.63639248,2466.0,2465.1,2.2509]
[1724800093007,0.63639248,2466.0,2465.0,7.37]
[1724800093245,0.63639248,2466.0,2464.8,3.0931744]
[1724800093246,0.08639248,2466.0,2465.1,2.50022627]
[1724800093541,2.31,2467.2,2465.3,2.4191]
[1724800093746,2.31,2467.2,2465.4,35.08109471]
[1724800093747,0.08639248,2467.1,2465.4,35.08109471]
[1724800093955,0.23963925,2467.1,2465.5,6.75001947]
[1724800094249,0.23963925,2467.1,2465.7,2.4191]
[1724800094419,2.31,2467.2,2465.8,0.08108354]
[1724800094618,2.31,2467.2,2465.7,5.4191]
[1724800094835,2.31,2467.2,2465.9,0.08108959]
[1724800095142,2.31,2467.2,2465.8,3.0]
[1724800095350,0.231,2467.1,2465.8,0.24191]
[1724800095511,0.231,2467.1,2465.8,3.24191]
[1724800095709,0.231,2467.1,2465.9,0.08108143]
[1724800095918,2.31,2467.2,2465.9,0.65529057]
[1724800096450,2.4561,2468.0,2466.0,2.4254]
[1724800096610,2.4561,2468.0,2466.2,2.4254]
[1724800096611,0.24561,2467.9,2466.2,2.4254]
[1724800096807,0.32890999,2467.9,2466.4,2.4254]
[1724800097006,0.32890999,2467.9,2466.5,0.32360125]
[1724800097443,0.32890999,2467.9,2466.5,3.32360125]
[1724800097941,0.32890999,2467.9,2466.5,3.24254]
[1724800099455,0.32890999,2467.9,2466.6,0.08106124]
[1724800099955,0.55,2467.8,2466.6,0.08106124]
[1724800100124,0.55,2467.8,2466.6,0.65596136]
[1724800100321,0.08460531,2467.7,2466.5,0.24254]
[1724800100640,0.55,2467.6,2466.4,2.4254]
[1724800100848,2.2922,2467.5,2466.1,2.67786906]
[1724800101150,0.83422,2467.4,2466.1,2.67786906]
[1724800101356,3.83422,2467.4,2466.1,2.67786906]
[1724800101511,0.08434974,2467.3,2466.1,2.67786906]
[1724800101711,0.55,2467.2,2466.1,2.67786906]
[1724800102109,0.08434974,2467.1,2466.2,0.08108297]
[1724800102316,0.55,2467.0,2466.2,0.08108297]
[1724800102617,1.107642,2467.3,2466.1,2.67786906]
[1724800102618,0.08408249,2466.9,2466.1,2.67786906]
[1724800102845,1.107642,2467.3,2466.1,2.67786906]
[1724800103049,0.08408249,2466.8,2466.1,2.67786906]
[1724800103358,2.53676131,2467.5,2466.1,2.67786906]
[1724800103359,2.2922,2467.5,2466.1,2.67786906]
[1724800103526,2.2922,2467.5,2466.2,3.0]
[1724800103862,0.31325601,2467.4,2466.1,2.3698]
[1724800104148,0.31325601,2467.4,2466.2,0.0810853]
[1724800104316,3.31325601,2467.4,2466.1,2.3698]
[1724800104510,0.55,2467.3,2466.2,0.23698]
[1724800104914,0.55,2467.3,2466.1,2.3698]
[1724800104915,0.08403601,2467.2,2466.1,2.3698]
[1724800105161,0.55,2467.1,2466.1,2.3698]
[1724800105516,0.55,2467.3,2466.1,2.3698]
[1724800105745,0.377922,2467.2,2466.1,2.3698]
[1724800105918,0.55,2467.1,2466.1,2.3698]
[1724800106123,0.08403601,2467.0,2466.1,2.3698]
[1724800106337,0.55,2466.9,2466.1,2.3698]
[1724800106716,0.08403601,2466.8,2466.1,2.3698]
[1724800106959,0.55,2467.1,2466.1,2.60678]
[1724800107252,2.318,2466.9,2465.7,2.324]
[1724800107560,0.55,2466.8,2465.7,2.324]
[1724800107760,0.08403601,2466.7,2465.2,2.40510761]
[1724800107916,0.37083601,2466.7,2465.2,2.324]
[1724800108119,0.55,2466.6,2464.9,2.324]
[1724800108344,6.9135533,2466.6,2465.1,0.42141222]
[1724800108573,0.81247494,2466.5,2465.2,2.324]
[1724800108717,0.55,2466.4,2465.2,2.324]
[1724800108913,2.868,2466.4,2465.2,5.324]
[1724800109129,0.4436799,2466.3,2465.3,0.0811125]
[1724800109350,0.55,2466.2,2465.3,0.0811125]
[1724800109753,6.3635533,2466.6,2465.3,0.0811125]
[1724800110047,0.24069553,2467.2,2465.4,2.2844]
[1724800110256,2.3658,2467.1,2465.5,0.23655125]
[1724800110457,2.3658,2467.1,2465.6,0.08108514]
[1724800110750,0.08289691,2467.0,2465.6,3.08108514]
[1724800110955,6.3635533,2466.9,2465.7,0.55244851]
[1724800111321,0.08289691,2466.8,2465.7,0.55244851]
[1724800111960,0.55,2466.7,2465.7,0.55244851]
[1724800112157,0.08318753,2466.6,2465.7,0.55244851]
[1724800112829,0.08318753,2466.6,2465.9,2.3191]
[1724800113257,2.2688,2467.4,2465.9,2.3191]
[1724800113462,0.08324564,2466.5,2465.9,2.3191]
[1724800113669,0.55,2467.3,2466.0,0.53191]
[1724800113842,0.08325727,2466.4,2466.0,0.53191]
[1724800114040,0.55,2467.3,2466.1,0.08108555]
[1724800114254,0.08325727,2466.3,2466.1,0.08108555]
[1724800114595,2.2688,2467.4,2466.1,0.08108555]
[1724800114729,2.2688,2467.4,2466.1,0.37429511]
[1724800114730,0.22688,2467.3,2466.1,0.37429511]
[1724800115071,0.22688,2467.3,2466.1,0.29320956]
[1724800115376,0.08333862,2467.2,2466.0,3.0]
[1724800115576,6.3635533,2466.8,2465.9,2.3191]
[1724800115758,0.71985665,2466.7,2465.9,2.3191]
[1724800116067,0.55,2466.6,2465.9,2.3191]
[1724800116264,0.55,2466.6,2466.0,0.08109852]
[1724800116467,0.55,2466.6,2465.9,2.3191]
[1724800116669,0.08350132,2466.5,2466.0,0.08108528]
[1724800116876,0.22688,2467.3,2466.1,2.3565]
[1724800117036,0.08350132,2466.4,2466.2,0.08107714]
[1724800117236,6.3635533,2467.4,2466.3,2.3565]
[1724800117536,8.6940533,2468.4,2466.5,2.3565]
[1724800117730,8.6940533,2468.4,2466.6,2.2779]
[1724800118044,0.1215504,2468.5,2466.9,4.276]
[1724800118376,0.1215504,2468.5,2467.6,4.276]
[1724800118581,0.1215504,2468.5,2467.8,6.5539]
[1724800118765,0.1215504,2468.5,2467.7,3.73639101]
[1724800118766,0.1215504,2468.5,2468.0,2.4726]
[1724800118971,0.1215504,2468.5,2468.0,5.4726]
[1724800119167,0.1215504,2468.5,2468.0,2.4726]
[1724800119667,0.1215504,2468.5,2467.0,2.4726]
[1724800119902,0.1215504,2468.5,2467.1,0.24726]
[1724800120037,0.1215504,2468.5,2467.1,3.24726]
[1724800120345,2.3868504,2468.5,2467.1,3.24726]
[1724800120543,0.55,2468.4,2467.1,3.24726]
[1724800120760,0.55,2468.4,2467.0,2.4726]
[1724800120984,0.55,2468.4,2466.5,2.4259]
[1724800120985,2.3904,2468.1,2466.5,2.4259]
[1724800121308,0.23904,2468.0,2466.5,2.4259]
[1724800121513,2.3904,2467.8,2465.5,2.4259]
[1724800122026,0.55,2467.7,2465.7,2.4259]
[1724800122157,0.78904,2467.7,2465.8,0.24259]
[1724800122360,0.78904,2467.7,2465.9,2.506975]
[1724800122361,0.55,2467.7,2465.9,2.506975]
[1724800122660,0.55,2467.7,2466.1,2.4259]
[1724800122855,0.55,2467.7,2466.3,2.4259]
[1724800123055,0.55,2467.7,2466.4,0.08105688]
[1724800123285,0.84404,2467.7,2466.4,0.68161368]
[1724800123500,0.84404,2467.7,2466.4,3.68161368]
[1724800123683,0.84404,2467.7,2466.5,0.0810569]
[1724800126676,3.84404,2467.7,2466.3,2.4259]
[1724800126986,3.84404,2467.7,2466.4,0.08107448]
[1724800126987,0.323444,2467.6,2466.4,0.08107448]
[1724800127161,0.55,2467.5,2466.4,0.08107448]
[1724800128898,0.08642878,2467.4,2466.4,0.08107448]
[1724800129102,0.55,2467.3,2466.3,2.66849]
[1724800129477,0.08642878,2467.2,2466.3,2.66849]
[1724800129678,0.55,2467.1,2466.3,2.4259]
[1724800129876,0.08642878,2467.1,2466.3,2.4259]
[1724800130100,0.55,2467.5,2466.3,2.4259]
[1724800130308,0.08642878,2467.0,2466.3,2.4259]
[1724800130602,0.08642878,2466.9,2466.3,2.4259]
[1724800130776,0.55,2467.5,2466.3,2.4259]
[1724800130977,0.08642878,2467.4,2466.3,2.4259]
[1724800131159,2.8062,2467.3,2465.7,2.407]
[1724800131513,0.08496551,2467.2,2465.7,3.444]
[1724800131799,2.8062,2467.3,2465.8,3.0]
[1724800131800,0.55,2467.1,2465.8,3.0]
[1724800132014,0.28062,2467.2,2465.8,3.6444]
[1724800132222,0.55,2467.1,2465.8,3.6444]
[1724800132500,0.55,2467.1,2465.9,0.70884]
[1724800132804,0.08496551,2467.0,2465.9,0.70884]
[1724800133165,0.55,2467.1,2465.9,0.70884]
[1724800133769,0.55,2467.1,2465.7,38.444]
[1724800133770,2.2562,2467.0,2465.7,2.407]
[1724800133976,4.05402,2466.7,2464.9,9.777]
[1724800134197,2.2562,2466.8,2464.9,9.98563775]
[1724800134198,0.08454729,2466.6,2464.9,9.98563775]
[1724800134410,2.2562,2466.5,2464.9,7.57863775]
[1724800134572,2.2562,2466.3,2464.9,7.57863775]
[1724800134773,0.63454729,2466.2,2464.9,7.57863775]
[1724800135002,6.32984276,2465.7,2464.6,14.827]
[1724800135207,2.9944,2465.6,2464.2,2.3513]
[1724800135362,2.9944,2465.6,2464.0,0.08113951]
[1724800135363,0.08454729,2465.5,2464.0,0.08113951]
[1724800135566,0.88744202,2465.5,2464.0,0.08113951]
[1724800135799,0.80289473,2465.5,2464.0,0.08113951]
[1724800137319,2.4444,2466.0,2464.1,2.43243947]
[1724800137613,2.4444,2466.0,2464.1,5.89019897]
[1724800137614,0.55,2465.9,2464.1,5.89019897]
[1724800137770,0.82334747,2465.9,2464.2,0.5890199]
[1724800137969,0.82334747,2465.9,2464.3,0.08113032]
[1724800138195,0.08454729,2465.8,2464.3,0.08113032]
[1724800138423,2.4444,2465.6,2464.2,3.5890199]
[1724800138711,0.55,2465.5,2463.9,0.42442936]
[1724800138919,0.63246599,2465.5,2463.9,0.42442936]
[1724800139076,0.55,2465.5,2464.0,0.53890755]
[1724800139269,0.8576866,2465.5,2464.1,2.4984]
[1724800139470,0.8576866,2465.5,2464.2,0.08112782]
[1724800139730,0.8576866,2465.5,2464.3,0.08113483]
[1724800139872,0.08246599,2465.4,2464.3,0.08113483]
[1724800140074,0.55,2465.3,2464.3,0.08113483]
[1724800140498,0.08022177,2465.2,2464.3,0.08113483]
[1724800141084,2.4444,2465.6,2464.3,0.08113483]